[Event "9th RTU Rapid 2019"]
[Site "Riga"]
[Date "2019.08.04"]
[Round "9.15"]
[White "Low, Kevin"]
[Black "Kopylov, Daniel"]
[Result "1/2-1/2"]
[ECO "B65"]
[WhiteElo "2153"]
[BlackElo "2103"]
[Annotator "NA"]
[PlyCount "112"]
[EventDate "2019.08.05"]
[EventType "swiss"]
[EventCountry "LAT"]
[SourceTitle "playchess.com"]
[Source "ChessBase"]
[SourceQuality "1"]
[TimeControl "5400+30"]

1. e4 {[%emt 1:15:22]} c5 {[%emt 1:15:24]} 2. Nf3 {[%emt 0:00:27]} d6 {[%emt 0:00:26]} 3. d4 {[%emt 0:00:26]} cxd4 {[%emt 0:00:27]} 4. Nxd4 {[%emt 0:00:26]} Nf6 {[%emt 0:00:26]} 5. Nc3 {[%emt 0:00:26]} Nc6 {[%emt 0:00:26]} 6. Bg5 {[%emt 0:00:27]} e6 {[%emt 0:00:26]} 7. Qd2 {[%emt 0:00:26]} Be7 {[%emt 0:00:29]} 8. O-O-O {[%emt 0:00:29]} Nxd4 {[%emt 0:00:30]} 9. Qxd4 {[%emt 0:00:29]} O-O {[%emt 0:00:28]} 10. f4 {[%emt 0:00:27]} Qa5 {[%emt 0:00:27]} 11. Bc4 {[%emt 0:00:33]} Rd8 {[%emt 0:00:32]} 12. Kb1 {[%emt 0:02:27]} h6 {[%emt 0:00:31]} 13. Bh4 {[%emt 0:00:29]} e5 {[%emt 0:01:01]} 14. Qd2 {[%emt 0:02:16]} exf4 {[%emt 0:00:54]} 15. Nd5 {[%emt 0:01:39]} Qxd2 {[%emt 0:00:28]} 16. Nxe7+ {[%emt 0:00:38]} Kf8 {[%emt 0:00:27]} 17. Rxd2 {[%emt 0:00:37]} Kxe7 {[%emt 0:01:15]} 18. Bxf6+ {[%emt 0:00:45]} Kxf6 {[%emt 0:01:27]} 19. Rf1 {[%emt 0:00:30]} Be6 {[%emt 0:00:41]} 20. Bd5 {[%emt 0:01:43]} Bxd5 {[%emt 0:02:33]} 21. Rxd5 {[%emt 0:00:27]} Rac8 {[%emt 0:00:28]} 22. Rxf4+ {[%emt 0:00:27]} Ke6 {[%emt 0:00:26]} 23. c3 {[%emt 0:00:36]} Rc5 {[%emt 0:00:31]} 24. Kc2 {[%emt 0:00:51]} f6 {[%emt 0:01:29]} 25. Rff5 {[%emt 0:01:00]} b6 {[%emt 0:00:40]} 26. Kd3 {[%emt 0:00:36]} Rf8 {[%emt 0:01:03]} 27. g4 {[%emt 0:00:36]} Rf7 {[%emt 0:01:50]} 28. b4 {[%emt 0:01:15]} Rc6 {[%emt 0:01:14]} 29. c4 {[%emt 0:01:19]} Rfc7 {[%emt 0:01:08]} 30. Rd4 {[%emt 0:00:27]} a6 {[%emt 0:00:39]} 31. a4 {[%emt 0:00:37]} Ra7 {[%emt 0:01:09]} 32. Rfd5 {[%emt 0:00:39]} b5 {[%emt 0:01:12]} 33. cxb5 {[%emt 0:02:49]} axb5 {[%emt 0:00:36]} 34. a5 {[%emt 0:00:28]} Rac7 {[%emt 0:00:31]} 35. Rxb5 {[%emt 0:00:31]} Rc3+ {[%emt 0:00:26]} 36. Ke2 {[%emt 0:00:32]} Rh3 {[%emt 0:00:35]} 37. Rd2 {[%emt 0:00:53]} Rxh2+ {[%emt 0:00:42]} 38. Kd3 {[%emt 0:00:29]} Rh3+ {[%emt 0:00:32]} 39. Kd4 {[%emt 0:00:27]} Rhc3 {[%emt 0:00:35]} 40. Rd3 {[%emt 0:00:30]} Rc1 {[%emt 0:00:51]} 41. a6 {[%emt 0:00:40]} R7c4+ {[%emt 0:01:14]} 42. Ke3 {[%emt 0:00:27]} Re1+ {[%emt 0:01:20]} 43. Kd2 {[%emt 0:00:27]} Ra1 {[%emt 0:00:26]} 44. Rb6 {[%emt 0:00:31]} Rxe4 {[%emt 0:00:35]} 45. Rdxd6+ {[%emt 0:00:40]} Ke7 {[%emt 0:01:03]} 46. Rdc6 {[%emt 0:00:43]} Ra2+ {[%emt 0:00:44]} 47. Kd3 {[%emt 0:00:49]} Rxg4 {[%emt 0:00:36]} 48. Rb7+ {[%emt 0:00:27]} Kd8 {[%emt 0:00:26]} 49. a7 {[%emt 0:00:31]} Ra3+ {[%emt 0:00:36]} 50. Kc2 {[%emt 0:00:31]} Rg2+ {[%emt 0:00:29]} 51. Kb1 {[%emt 0:00:26]} Rga2 {[%emt 0:00:49]} 52. Rcc7 {[%emt 0:01:31]} Ra1+ {[%emt 0:00:32]} 53. Kc2 {[%emt 0:00:29]} R1a2+ {[%emt 0:00:27]} 54. Kd1 {[%emt 0:00:42]} Ra1+ {[%emt 0:00:27]} 55. Kd2 {[%emt 0:00:27]} R1a2+ {[%emt 0:00:28]} 56. Kc1 {[%emt 0:01:50]} Ra1+ {[%emt 0:00:14]} 1/2-1/2

[Event "9th RTU Rapid 2019"]
[Site "Riga"]
[Date "2019.08.04"]
[Round "9.16"]
[White "Solys, Laimutis"]
[Black "Nesteretz, Anatoliy"]
[Result "0-1"]
[ECO "B33"]
[WhiteElo "2143"]
[BlackElo "2317"]
[Annotator "NA"]
[PlyCount "96"]
[EventDate "2019.08.05"]
[EventType "swiss"]
[EventCountry "LAT"]
[SourceTitle "playchess.com"]
[Source "ChessBase"]
[SourceQuality "1"]
[TimeControl "5400+30"]

1. e4 {[%emt 1:15:23]} c5 {[%emt 1:15:21]} 2. Nf3 {[%emt 0:00:30]} Nc6 {[%emt 0:00:27]} 3. d4 {[%emt 0:00:28]} cxd4 {[%emt 0:00:27]} 4. Nxd4 {[%emt 0:00:27]} Qb6 {[%emt 0:00:26]} 5. Nb3 {[%emt 0:00:34]} Nf6 {[%emt 0:00:29]} 6. Nc3 {[%emt 0:00:27]} e6 {[%emt 0:00:34]} 7. Be3 {[%emt 0:00:31]} Qc7 {[%emt 0:00:33]} 8. Bd3 {[%emt 0:00:38]} Bb4 {[%emt 0:02:33]} 9. O-O {[%emt 0:00:34]} Bxc3 {[%emt 0:00:30]} 10. bxc3 {[%emt 0:00:29]} d5 {[%emt 0:01:05]} 11. exd5 {[%emt 0:00:48]} Nxd5 {[%emt 0:00:33]} 12. Bc5 {[%emt 0:00:36]} Nce7 {[%emt 0:04:42]} 13. c4 {[%emt 0:02:07]} Nf6 {[%emt 0:00:40]} 14. Re1 {[%emt 0:01:06]} O-O {[%emt 0:01:16]} 15. Bd6 {[%emt 0:00:37]} Qd8 {[%emt 0:01:15]} 16. c5 {[%emt 0:00:48]} Re8 {[%emt 0:00:50]} 17. c4 {[%emt 0:00:35]} Ng6 {[%emt 0:01:30]} 18. Nd4 {[%emt 0:00:45]} a6 {[%emt 0:04:33]} 19. Qf3 {[%emt 0:01:10]} e5 {[%emt 0:00:40]} 20. Nf5 {[%emt 0:01:01]} Bd7 {[%emt 0:00:59]} 21. Rad1 {[%emt 0:02:39]} Qc8 {[%emt 0:00:38]} 22. g4 {[%emt 0:01:47]} e4 {[%emt 0:00:35]} 23. Bxe4 {[%emt 0:00:31]} Nxe4 {[%emt 0:00:39]} 24. Rxe4 {[%emt 0:00:27]} Bc6 {[%emt 0:00:28]} 25. Qc3 {[%emt 0:02:00]} f6 {[%emt 0:00:26]} 26. Re3 {[%emt 0:00:35]} Qd7 {[%emt 0:00:35]} 27. Rde1 {[%emt 0:00:42]} Rxe3 {[%emt 0:00:34]} 28. Rxe3 {[%emt 0:00:27]} Re8 {[%emt 0:00:32]} 29. h3 {[%emt 0:01:33]} Rxe3 {[%emt 0:00:33]} 30. Qxe3 {[%emt 0:00:55]} Qe8 {[%emt 0:00:29]} 31. f4 {[%emt 0:01:11]} Qxe3+ 32. Nxe3 {[%emt 0:00:27]} Kf7 {[%emt 0:00:58]} 33. Kf2 {[%emt 0:00:26]} Nf8 {[%emt 0:00:29]} 34. Nd5 {[%emt 0:00:58]} Ne6 {[%emt 0:00:28]} 35. Ke3 {[%emt 0:00:26]} Ba4 {[%emt 0:00:29]} 36. Nb4 {[%emt 0:00:57]} Nd8 {[%emt 0:00:28]} 37. Kd2 {[%emt 0:00:54]} Bd7 {[%emt 0:00:27]} 38. Ke3 {[%emt 0:00:42]} Ba4 {[%emt 0:00:26]} 39. f5 {[%emt 0:00:46]} Nc6 {[%emt 0:00:29]} 40. Nd5 {[%emt 0:00:32]} Na5 {[%emt 0:00:27]} 41. Kd4 {[%emt 0:00:32]} Bd1 {[%emt 0:00:29]} 42. Ne3 {[%emt 0:00:41]} Bf3 {[%emt 0:00:28]} 43. Bc7 {[%emt 0:00:37]} Nc6+ {[%emt 0:00:27]} 44. Kd3 {[%emt 0:00:27]} Nb4+ {[%emt 0:00:35]} 45. Kd4 {[%emt 0:00:50]} Nxa2 {[%emt 0:00:30]} 46. Ba5 {[%emt 0:00:26]} Nc1 {[%emt 0:00:28]} 47. Nd5 {[%emt 0:00:34]} Nb3+ {[%emt 0:00:26]} 48. Kc3 {[%emt 0:00:37]} Nxa5 {[%emt 0:00:28]} 0-1

[Event "9th RTU Rapid 2019"]
[Site "Riga"]
[Date "2019.08.04"]
[Round "9.17"]
[White "Vishnu Prasanna. V"]
[Black "Visockis, Janis"]
[Result "1-0"]
[ECO "D02"]
[WhiteElo "2465"]
[BlackElo "2038"]
[Annotator "ChessBase"]
[PlyCount "95"]
[EventDate "2019.08.05"]
[EventType "swiss"]
[EventCountry "LAT"]
[SourceTitle "playchess.com"]
[Source "ChessBase"]
[SourceQuality "1"]
[TimeControl "5400+30"]

1. d4 {[%emt 1:15:23]} d5 {[%emt 1:15:21]} 2. Nf3 {[%emt 0:00:28]} c6 {[%emt 0:00:29]} 3. g3 {[%emt 0:00:28]} Bf5 {[%emt 0:00:38]} 4. Bg2 {[%emt 0:00:29]} e6 {[%emt 0:00:32]} 5. O-O {[%emt 0:00:30]} Nd7 {[%emt 0:00:34]} 6. Nbd2 {[%emt 0:00:57]} Bd6 {[%emt 0:00:40]} 7. c4 {[%emt 0:00:28]} Ngf6 {[%emt 0:00:36]} 8. Qb3 {[%emt 0:00:37]} Rb8 {[%emt 0:00:41]} 9. Nh4 {[%emt 0:00:30]} Bg6 {[%emt 0:00:39]} 10. Nxg6 {[%emt 0:01:00]} hxg6 {[%emt 0:00:27]} 11. e4 {[%emt 0:00:27]} dxe4 {[%emt 0:00:30]} 12. Nxe4 {[%emt 0:00:27]} Nxe4 {[%emt 0:00:29]} 13. Bxe4 {[%emt 0:00:28]} O-O {[%emt 0:00:42]} 14. h4 {[%emt 0:01:03]} e5 {[%emt 0:00:55]} 15. dxe5 {[%emt 0:00:59]} Bxe5 {[%emt 0:00:43]} 16. Be3 {[%emt 0:00:27]} a6 {[%emt 0:01:05]} 17. Ba7 {[%emt 0:00:39]} Rc8 {[%emt 0:01:39]} 18. c5 {[%emt 0:00:47]} Qc7 {[%emt 0:01:06]} 19. Bxg6 {[%emt 0:00:31]} Ra8 {[%emt 0:01:17]} 20. Bb6 {[%emt 0:00:35]} Nxb6 {[%emt 0:00:28]} 21. cxb6 {[%emt 0:00:27]} Qd6 {[%emt 0:00:26]} 22. Be4 {[%emt 0:00:34]} Bd4 {[%emt 0:00:45]} 23. Rad1 {[%emt 0:00:37]} c5 {[%emt 0:00:28]} 24. Bg2 {[%emt 0:00:39]} Qf6 {[%emt 0:00:40]} 25. Rd3 {[%emt 0:00:50]} a5 {[%emt 0:00:51]} 26. Qc4 {[%emt 0:00:43]} Ra6 {[%emt 0:00:42]} 27. b3 {[%emt 0:01:52]} Rxb6 {[%emt 0:00:32]} 28. Bd5 {[%emt 0:00:28]} Rd6 {[%emt 0:01:10]} 29. Rf3 {[%emt 0:00:34]} Qg6 {[%emt 0:00:31]} 30. Bxb7 {[%emt 0:00:37]} Rf6 {[%emt 0:01:33]} 31. Kg2 {[%emt 0:00:40]} Re8 {[%emt 0:01:05]} 32. Rd1 {[%emt 0:00:37]} Ree6 {[%emt 0:00:44]} 33. Qb5 {[%emt 0:01:07]} Rxf3 {[%emt 0:01:31]} 34. Bxf3 {[%emt 0:00:28]} Qc2 {[%emt 0:00:38]} 35. Rf1 {[%emt 0:00:32]} Qc3 {[%emt 0:00:48]} 36. Bd5 {[%emt 0:01:20]} Rf6 {[%emt 0:00:34]} 37. Qe8+ {[%emt 0:00:28]} Kh7 {[%emt 0:00:28]} 38. Be4+ {[%emt 0:00:28]} g6 {[%emt 0:00:28]} 39. h5 {[%emt 0:00:36]} Qd2 {[%emt 0:02:11]} 40. Bf3 {[%emt 0:02:42]} Kg7 {[%emt 0:00:59]} 41. hxg6 {[%emt 0:01:43]} fxg6 {[%emt 0:00:40]} 42. Be2 {[%emt 0:00:47]} Rf8 {[%emt 0:00:46]} 43. Qe7+ {[%emt 0:00:40]} Rf7 {[%emt 0:00:27]} 44. Qe4 {[%emt 0:00:27]} Qg5 {[%emt 0:00:34]} 45. Bc4 {[%emt 0:00:35]} Re7 {[%emt 0:00:29]} 46. Qa8 {[%emt 0:00:31]} Qe5 {[%emt 0:01:09]} 47. Qg8+ {[%emt 0:00:34]} Kh6 {[%emt 0:01:13]} 48. Rh1+ {[%emt 0:00:28]} 1-0

[Event "9th RTU Rapid 2019"]
[Site "Riga"]
[Date "2019.08.04"]
[Round "9.18"]
[White "Rudovskii, Filipp"]
[Black "Mohammad Nubairshah Shaikh"]
[Result "1-0"]
[ECO "B15"]
[WhiteElo "2127"]
[BlackElo "2278"]
[Annotator "NA"]
[PlyCount "113"]
[EventDate "2019.08.05"]
[EventType "swiss"]
[EventCountry "LAT"]
[SourceTitle "playchess.com"]
[Source "ChessBase"]
[SourceQuality "1"]
[TimeControl "5400+30"]

1. e4 {[%emt 1:15:27]} g6 {[%emt 1:15:21]} 2. d4 {[%emt 0:00:29]} Bg7 {[%emt 0:00:26]} 3. Nc3 {[%emt 0:00:35]} c6 {[%emt 0:00:27]} 4. Be3 {[%emt 0:00:45]} d5 {[%emt 0:00:26]} 5. e5 {[%emt 0:00:53]} Nh6 {[%emt 0:00:33]} 6. h4 {[%emt 0:01:02]} Qb6 {[%emt 0:04:13]} 7. a3 {[%emt 0:01:40]} f6 {[%emt 0:03:36]} 8. h5 {[%emt 0:02:27]} Bg4 {[%emt 0:02:25]} 9. Qd2 {[%emt 0:00:51]} g5 {[%emt 0:00:54]} 10. f3 {[%emt 0:00:57]} Be6 {[%emt 0:00:28]} 11. Na4 {[%emt 0:01:00]} Qc7 {[%emt 0:00:28]} 12. Nc5 {[%emt 0:00:27]} Bc8 {[%emt 0:00:34]} 13. f4 {[%emt 0:01:04]} Ng4 {[%emt 0:02:38]} 14. h6 {[%emt 0:01:58]} Bxh6 {[%emt 0:01:47]} 15. O-O-O {[%emt 0:01:06]} gxf4 {[%emt 0:00:45]} 16. Bxf4 Bxf4 {[%emt 0:00:26]} 17. Qxf4 {[%emt 0:00:52]} fxe5 {[%emt 0:00:26]} 18. Qg5 {[%emt 0:00:26]} exd4 {[%emt 0:00:36]} 19. Rxh7 {[%emt 0:00:42]} Rf8 {[%emt 0:00:35]} 20. Re1 {[%emt 0:01:24]} Ne3 {[%emt 0:00:30]} 21. Qg6+ {[%emt 0:01:12]} Kd8 {[%emt 0:00:26]} 22. Rf7 {[%emt 0:00:36]} Re8 {[%emt 0:01:09]} 23. Rg7 {[%emt 0:03:17]} Qd6 {[%emt 0:01:04]} 24. Qxd6+ exd6 {[%emt 0:00:26]} 25. Nxb7+ Bxb7 {[%emt 0:00:26]} 26. Rxb7 {[%emt 0:00:01]} Nd7 {[%emt 0:00:26]} 27. Nf3 {[%emt 0:03:25]} Nxf1 {[%emt 0:00:58]} 28. Rxf1 {[%emt 0:00:26]} Kc8 {[%emt 0:00:26]} 29. Rb3 {[%emt 0:00:53]} c5 {[%emt 0:00:35]} 30. g4 {[%emt 0:00:40]} Kc7 {[%emt 0:00:44]} 31. Ng5 {[%emt 0:00:37]} Rg8 {[%emt 0:00:32]} 32. Ne6+ {[%emt 0:00:27]} Kc6 {[%emt 0:00:26]} 33. Rg3 {[%emt 0:00:31]} Rae8 {[%emt 0:00:28]} 34. Nf4 {[%emt 0:00:35]} Ref8 {[%emt 0:00:30]} 35. g5 {[%emt 0:00:34]} Ne5 {[%emt 0:00:26]} 36. Kd2 {[%emt 0:00:32]} Ng6 {[%emt 0:00:29]} 37. Nxg6 {[%emt 0:00:26]} Rxf1 {[%emt 0:00:30]} 38. Ne7+ {[%emt 0:00:26]} Kb5 {[%emt 0:01:13]} 39. Nxg8 {[%emt 0:00:27]} Rf2+ {[%emt 0:00:27]} 40. Kd3 {[%emt 0:00:42]} Rf4 {[%emt 0:00:30]} 41. g6 {[%emt 0:00:28]} c4+ {[%emt 0:00:25]} 42. Kd2 {[%emt 0:00:26]} Rf2+ {[%emt 0:00:26]} 43. Kd1 {[%emt 0:00:27]} d3 {[%emt 0:00:28]} 44. cxd3 {[%emt 0:00:27]} Rxb2 {[%emt 0:00:26]} 45. dxc4+ {[%emt 0:00:27]} dxc4 {[%emt 0:00:26]} 46. Ne7 {[%emt 0:00:27]} c3 {[%emt 0:00:28]} 47. Rxc3 {[%emt 0:00:29]} Rg2 {[%emt 0:00:26]} 48. Rf3 {[%emt 0:00:30]} Kc4 {[%emt 0:00:27]} 49. Rf7 {[%emt 0:00:33]} Kd3 {[%emt 0:00:26]} 50. Ke1 {[%emt 0:00:26]} Ke3 {[%emt 0:00:43]} 51. Kf1 {[%emt 0:00:27]} Ra2 {[%emt 0:00:49]} 52. g7 {[%emt 0:00:29]} Ra1+ {[%emt 0:00:29]} 53. Kg2 {[%emt 0:00:27]} Ra2+ {[%emt 0:00:27]} 54. Kg3 {[%emt 0:00:28]} Rxa3 {[%emt 0:00:25]} 55. g8=Q {[%emt 0:00:30]} d5 {[%emt 0:00:26]} 56. Qg5+ {[%emt 0:00:28]} Ke4+ {[%emt 0:00:25]} 57. Kg4 {[%emt 0:00:27]} 1-0

[Event "9th RTU Rapid 2019"]
[Site "Riga"]
[Date "2019.08.04"]
[Round "9.19"]
[White "Evchin, Maxim"]
[Black "Vedrickiene, Jovita"]
[Result "1/2-1/2"]
[ECO "A45"]
[WhiteElo "2269"]
[BlackElo "2036"]
[Annotator "NA"]
[PlyCount "112"]
[EventDate "2019.08.05"]
[EventType "swiss"]
[EventCountry "LAT"]
[SourceTitle "playchess.com"]
[Source "ChessBase"]
[SourceQuality "1"]
[TimeControl "5400+30"]

1. d4 {[%emt 1:15:25]} Nf6 {[%emt 1:15:46]} 2. Bg5 {[%emt 0:00:26]} h6 {[%emt 0:00:36]} 3. Bxf6 {[%emt 0:00:32]} exf6 {[%emt 0:00:27]} 4. e3 {[%emt 0:00:33]} d5 {[%emt 0:00:30]} 5. c4 {[%emt 0:00:28]} Bb4+ {[%emt 0:01:01]} 6. Nc3 {[%emt 0:00:27]} O-O {[%emt 0:00:32]} 7. Qb3 {[%emt 0:01:05]} Bxc3+ {[%emt 0:00:43]} 8. bxc3 {[%emt 0:00:35]} dxc4 {[%emt 0:00:31]} 9. Bxc4 {[%emt 0:00:27]} Nc6 {[%emt 0:00:36]} 10. Be2 {[%emt 0:01:07]} a6 {[%emt 0:03:47]} 11. Nf3 {[%emt 0:00:33]} b5 {[%emt 0:00:34]} 12. O-O {[%emt 0:00:33]} Be6 {[%emt 0:00:29]} 13. Qc2 {[%emt 0:00:52]} Na5 {[%emt 0:01:08]} 14. Nd2 {[%emt 0:00:37]} c5 {[%emt 0:00:57]} 15. Ne4 {[%emt 0:00:43]} Bf5 {[%emt 0:01:50]} 16. Bd3 {[%emt 0:00:42]} c4 {[%emt 0:00:49]} 17. Nxf6+ {[%emt 0:00:29]} Qxf6 {[%emt 0:01:03]} 18. Bxf5 {[%emt 0:00:27]} Rab8 {[%emt 0:01:07]} 19. Rab1 {[%emt 0:00:31]} Nc6 {[%emt 0:00:41]} 20. Be4 {[%emt 0:00:43]} Ne7 {[%emt 0:00:30]} 21. g3 {[%emt 0:00:36]} h5 {[%emt 0:01:08]} 22. Bg2 {[%emt 0:00:44]} h4 {[%emt 0:00:57]} 23. e4 {[%emt 0:00:31]} Qg5 {[%emt 0:03:03]} 24. f4 {[%emt 0:00:42]} Qg4 {[%emt 0:00:56]} 25. Bf3 {[%emt 0:00:36]} Qh3 {[%emt 0:00:31]} 26. Qg2 {[%emt 0:00:37]} Qd7 {[%emt 0:00:35]} 27. Rfd1 {[%emt 0:01:10]} Rb6 {[%emt 0:00:29]} 28. d5 {[%emt 0:01:01]} hxg3 {[%emt 0:00:46]} 29. hxg3 {[%emt 0:00:28]} Rg6 {[%emt 0:00:47]} 30. Rd4 {[%emt 0:01:46]} Kh7 {[%emt 0:00:38]} 31. f5 {[%emt 0:00:47]} Rh6 {[%emt 0:00:39]} 32. Qd2 {[%emt 0:03:17]} Rh8 {[%emt 0:00:30]} 33. d6 {[%emt 0:01:11]} Nc6 {[%emt 0:00:28]} 34. Rd5 {[%emt 0:00:26]} Kg8 {[%emt 0:01:06]} 35. Qe3 {[%emt 0:01:38]} Rxd6 {[%emt 0:00:41]} 36. Rbd1 {[%emt 0:00:28]} Rxd5 {[%emt 0:00:39]} 37. Rxd5 {[%emt 0:00:26]} Qc7 {[%emt 0:00:32]} 38. Kg2 {[%emt 0:00:35]} Ne5 {[%emt 0:00:39]} 39. Qc5 {[%emt 0:01:58]} Qxc5 {[%emt 0:00:29]} 40. Rxc5 {[%emt 0:00:27]} Nxf3 {[%emt 0:00:27]} 41. Rc8+ {[%emt 0:01:49]} Kh7 {[%emt 0:00:26]} 42. Rxh8+ {[%emt 0:00:27]} Kxh8 {[%emt 0:00:26]} 43. Kxf3 {[%emt 0:00:26]} a5 {[%emt 0:00:28]} 44. a3 {[%emt 0:00:52]} Kh7 {[%emt 0:00:32]} 45. Ke3 {[%emt 0:00:32]} Kh6 {[%emt 0:00:29]} 46. Kd4 {[%emt 0:00:37]} Kg5 {[%emt 0:00:27]} 47. Kc5 {[%emt 0:00:27]} b4 {[%emt 0:00:54]} 48. Kxc4 {[%emt 0:00:27]} bxc3 {[%emt 0:00:32]} 49. Kxc3 {[%emt 0:00:30]} Kg4 {[%emt 0:00:28]} 50. Kd4 {[%emt 0:00:43]} f6 {[%emt 0:00:31]} 51. a4 {[%emt 0:01:26]} Kxg3 {[%emt 0:00:26]} 52. e5 {[%emt 0:00:44]} fxe5+ {[%emt 0:00:28]} 53. Kxe5 {[%emt 0:00:26]} Kg4 {[%emt 0:00:27]} 54. Ke4 {[%emt 0:00:28]} Kg5 {[%emt 0:00:27]} 55. Ke5 {[%emt 0:00:26]} Kg4 {[%emt 0:00:26]} 56. Ke4 {[%emt 0:00:26]} Kg5 {[%emt 0:00:26]} 1/2-1/2

[Event "9th RTU Rapid 2019"]
[Site "Riga"]
[Date "2019.08.04"]
[Round "9.20"]
[White "Afanasiev, Vadim"]
[Black "Bagatais, Janis"]
[Result "1/2-1/2"]
[ECO "D35"]
[WhiteElo "2241"]
[BlackElo "1946"]
[Annotator "NA"]
[PlyCount "130"]
[EventDate "2019.08.05"]
[EventType "swiss"]
[EventCountry "LAT"]
[SourceTitle "playchess.com"]
[Source "ChessBase"]
[SourceQuality "1"]
[TimeControl "5400+30"]

1. d4 {[%emt 1:15:23]} Nf6 {[%emt 1:15:22]} 2. c4 {[%emt 0:00:26]} e6 {[%emt 0:00:26]} 3. Nc3 {[%emt 0:00:27]} d5 {[%emt 0:00:26]} 4. cxd5 {[%emt 0:00:27]} Nxd5 {[%emt 0:00:30]} 5. e4 {[%emt 0:00:30]} Nxc3 {[%emt 0:00:30]} 6. bxc3 {[%emt 0:00:27]} c5 {[%emt 0:00:29]} 7. Rb1 {[%emt 0:00:34]} cxd4 {[%emt 0:01:14]} 8. cxd4 {[%emt 0:00:29]} Nc6 {[%emt 0:00:31]} 9. Nf3 {[%emt 0:00:48]} Bb4+ {[%emt 0:01:02]} 10. Bd2 {[%emt 0:00:57]} Bxd2+ {[%emt 0:00:28]} 11. Qxd2 {[%emt 0:00:27]} O-O {[%emt 0:00:34]} 12. Bb5 {[%emt 0:00:52]} Bd7 {[%emt 0:02:10]} 13. O-O {[%emt 0:01:04]} a6 {[%emt 0:01:48]} 14. Bd3 {[%emt 0:01:38]} b5 {[%emt 0:00:58]} 15. Rfe1 {[%emt 0:04:30]} Na5 {[%emt 0:02:34]} 16. d5 {[%emt 0:02:28]} exd5 {[%emt 0:01:28]} 17. exd5 {[%emt 0:00:27]} Nc4 {[%emt 0:00:51]} 18. Bxc4 {[%emt 0:04:13]} bxc4 {[%emt 0:00:27]} 19. Qd4 {[%emt 0:00:26]} Rc8 {[%emt 0:00:56]} 20. Ne5 {[%emt 0:01:05]} c3 {[%emt 0:01:39]} 21. Rb7 {[%emt 0:01:24]} c2 {[%emt 0:02:01]} 22. Rc1 {[%emt 0:00:26]} Bc6 {[%emt 0:02:54]} 23. Nxc6 {[%emt 0:01:48]} Rxc6 {[%emt 0:00:27]} 24. Qe4 {[%emt 0:00:34]} Rd6 {[%emt 0:01:10]} 25. Rxc2 {[%emt 0:00:32]} Rxd5 {[%emt 0:00:26]} 26. g3 {[%emt 0:00:31]} Rd1+ {[%emt 0:01:06]} 27. Kg2 {[%emt 0:00:26]} Re8 {[%emt 0:00:28]} 28. Qf3 {[%emt 0:00:28]} Rd7 {[%emt 0:00:52]} 29. Rb3 {[%emt 0:00:36]} g6 {[%emt 0:00:27]} 30. Rc6 {[%emt 0:00:29]} Rd6 {[%emt 0:00:32]} 31. Rbc3 {[%emt 0:00:31]} Rxc6 {[%emt 0:00:32]} 32. Rxc6 {[%emt 0:00:26]} a5 {[%emt 0:00:27]} 33. Ra6 {[%emt 0:00:29]} Qc7 {[%emt 0:00:31]} 34. Qd5 {[%emt 0:00:32]} Re1 {[%emt 0:00:37]} 35. Ra8+ {[%emt 0:00:29]} Kg7 {[%emt 0:00:25]} 36. Qd4+ {[%emt 0:00:31]} Qe5 {[%emt 0:00:31]} 37. Qxe5+ {[%emt 0:00:33]} Rxe5 {[%emt 0:00:26]} 38. Kf3 {[%emt 0:00:29]} Kf6 {[%emt 0:00:28]} 39. Ra6+ {[%emt 0:00:27]} Kg7 {[%emt 0:00:32]} 40. a4 {[%emt 0:00:28]} h5 {[%emt 0:00:30]} 41. h4 {[%emt 0:00:30]} Rf5+ {[%emt 0:00:29]} 42. Ke3 {[%emt 0:00:26]} Re5+ {[%emt 0:00:26]} 43. Kd3 {[%emt 0:00:28]} Rf5 {[%emt 0:00:27]} 44. f4 {[%emt 0:00:26]} Rc5 {[%emt 0:00:34]} 45. Kd4 {[%emt 0:00:35]} Rf5 {[%emt 0:00:27]} 46. Rb6 {[%emt 0:00:29]} Rf6 {[%emt 0:00:38]} 47. Rxf6 {[%emt 0:00:40]} Kxf6 {[%emt 0:00:26]} 48. Kc5 {[%emt 0:00:25]} Ke6 {[%emt 0:00:35]} 49. Kb6 {[%emt 0:00:26]} Kd6 {[%emt 0:00:26]} 50. Kxa5 {[%emt 0:00:27]} Kc5 {[%emt 0:00:26]} 51. Ka6 {[%emt 0:00:27]} Kc6 {[%emt 0:00:29]} 52. a5 {[%emt 0:00:30]} f6 {[%emt 0:00:29]} 53. Ka7 {[%emt 0:00:28]} Kc7 {[%emt 0:00:26]} 54. Ka6 {[%emt 0:00:40]} Kc6 {[%emt 0:00:26]} 55. Ka7 {[%emt 0:00:32]} Kc7 {[%emt 0:00:26]} 56. Ka8 {[%emt 0:00:26]} Kc8 {[%emt 0:00:32]} 57. Ka7 {[%emt 0:00:35]} Kc7 {[%emt 0:00:26]} 58. Ka6 {[%emt 0:00:32]} Kc6 {[%emt 0:00:26]} 59. Ka7 {[%emt 0:00:32]} Kc7 {[%emt 0:00:26]} 60. f5 {[%emt 0:00:33]} gxf5 {[%emt 0:00:33]} 61. Ka8 {[%emt 0:00:28]} Kc8 {[%emt 0:00:28]} 62. Ka7 {[%emt 0:00:29]} Kc7 {[%emt 0:00:26]} 63. Ka6 {[%emt 0:00:30]} Kc6 {[%emt 0:00:26]} 64. Ka7 {[%emt 0:00:31]} Kc7 65. a6 {[%emt 0:00:06]} f4 {[%emt 0:00:03]} 1/2-1/2

[Event "9th RTU Rapid 2019"]
[Site "Riga"]
[Date "2019.08.04"]
[Round "9.21"]
[White "Wedda, Dries"]
[Black "Shashnev, Pavel"]
[Result "1-0"]
[ECO "A52"]
[WhiteElo "2234"]
[BlackElo "2021"]
[Annotator "NA"]
[PlyCount "52"]
[EventDate "2019.08.05"]
[EventType "swiss"]
[EventCountry "LAT"]
[SourceTitle "playchess.com"]
[Source "ChessBase"]
[SourceQuality "1"]
[TimeControl "5400+30"]

1. d4 {[%emt 1:15:22]} Nf6 {[%emt 1:15:21]} 2. c4 {[%emt 0:00:26]} e5 {[%emt 0:00:26]} 3. dxe5 {[%emt 0:00:28]} Ng4 {[%emt 0:00:26]} 4. e3 {[%emt 0:00:27]} Nxe5 {[%emt 0:00:27]} 5. f4 {[%emt 0:00:26]} Nec6 {[%emt 0:00:27]} 6. Nc3 {[%emt 0:00:48]} Bb4 {[%emt 0:00:26]} 7. Qc2 {[%emt 0:00:30]} a5 {[%emt 0:00:59]} 8. Nf3 {[%emt 0:00:46]} d6 {[%emt 0:00:28]} 9. Bd2 {[%emt 0:00:34]} Nd7 {[%emt 0:00:39]} 10. a3 {[%emt 0:00:44]} Bc5 {[%emt 0:00:38]} 11. Bd3 {[%emt 0:01:42]} Nf6 {[%emt 0:00:42]} 12. O-O-O {[%emt 0:00:51]} O-O {[%emt 0:04:18]} 13. h3 {[%emt 0:00:33]} Re8 {[%emt 0:00:48]} 14. Rde1 {[%emt 0:00:55]} h6 {[%emt 0:01:31]} 15. g4 {[%emt 0:00:32]} d5 {[%emt 0:00:26]} 16. g5 {[%emt 0:00:42]} Ne4 {[%emt 0:01:41]} 17. Nxe4 {[%emt 0:01:55]} dxe4 {[%emt 0:00:28]} 18. Bxe4 {[%emt 0:00:30]} h5 {[%emt 0:00:49]} 19. Bxc6 {[%emt 0:02:58]} bxc6 {[%emt 0:00:32]} 20. Ne5 {[%emt 0:00:27]} Qd6 {[%emt 0:03:22]} 21. Bc3 {[%emt 0:00:33]} Rb8 {[%emt 0:01:03]} 22. Qe2 {[%emt 0:01:45]} Rb3 {[%emt 0:02:27]} 23. Qxh5 {[%emt 0:03:47]} g6 {[%emt 0:02:56]} 24. Qd1 {[%emt 0:01:05]} Rxc3+ {[%emt 0:00:31]} 25. bxc3 {[%emt 0:00:27]} Bxa3+ {[%emt 0:00:32]} 26. Kc2 {[%emt 0:00:26]} Qc5 {[%emt 0:00:06]} 1-0